bitfinex/quotes_ETHUSD_20250823
["timestamp","ask_amount","ask_price","bid_price","bid_amount"]
[1755909471757,0.002,4815.4,4814.7,36.00081176]
[1755909471953,0.002,4815.4,4814.7,36.66081176]
[1755909472280,0.002,4815.4,4814.7,36.6608113]
[1755909478075,0.002,4815.4,4814.7,36.6558113]
[1755909479707,0.002,4815.4,4814.7,33.0988113]
[1755909480015,0.002,4815.4,4814.7,36.6528113]
[1755909480314,0.002,4815.4,4814.8,0.66]
[1755909480513,0.002,4815.4,4814.9,42.3348113]
[1755909480832,0.002,4815.4,4815.3,0.764]
[1755909481029,0.002,4815.4,4815.3,36.02310642]
[1755909481322,0.002,4815.4,4815.3,36.00233929]
[1755909481484,0.002,4815.4,4815.3,5.81]
[1755909481685,0.002,4815.4,4815.3,6.81851943]
[1755909482082,0.002,4815.4,4815.3,36.81851943]
[1755909482619,0.002,4815.4,4815.3,33.26451943]
[1755909482912,0.002,4815.4,4815.3,36.81651943]
[1755909484120,0.002,4815.4,4815.3,33.26451943]
[1755909484284,0.002,4815.4,4815.3,36.81651943]
[1755909484619,0.002,4815.4,4815.3,36.81666344]
[1755909486921,0.002,4815.4,4815.3,33.26466344]
[1755909487233,0.002,4815.4,4815.3,36.81266344]
[1755909488216,0.002,4815.4,4815.3,36.81066344]
[1755909488757,0.002,4815.4,4815.3,33.26466344]
[1755909489017,0.002,4815.4,4815.3,35.33505681]
[1755909489219,0.002,4815.4,4815.3,31.14705681]
[1755909489523,0.002,4815.4,4815.3,31.14717083]
[1755909489718,0.002,4815.4,4815.3,35.33516926]
[1755909490618,0.002,4815.4,4815.3,31.78916926]
[1755909490784,0.002,4815.4,4815.3,35.33516926]
[1755909490986,0.002,4815.4,4815.3,35.43916926]
[1755909491187,0.02,4815.8,4815.3,37.58104726]
[1755909491387,0.02,4815.8,4815.4,30.19316926]
[1755909491697,0.02,4815.8,4815.6,0.104]
[1755909491894,0.02,4815.8,4815.7,43.73816926]
[1755909492094,0.02,4815.8,4815.7,33.73816926]
[1755909493127,0.02,4815.8,4815.7,33.73616926]
[1755909494325,0.02,4815.8,4815.7,35.87804726]
[1755909494497,0.02,4815.8,4815.7,35.98204726]
[1755909496344,0.002,4816.4,4815.7,35.98204726]
[1755909496547,0.002,4816.4,4815.8,30.21393424]
[1755909496750,0.002,4816.4,4815.8,30.19316926]
[1755909496954,0.002,4816.4,4815.8,32.27084624]
[1755909497915,0.002,4816.4,4815.8,32.93188967]
[1755909498141,0.002,4816.4,4815.8,33.03588967]
[1755909498654,0.002,4816.4,4815.8,33.65919767]
[1755909501460,0.95704725,4817.7,4815.9,0.66]
[1755909501461,0.73370029,4817.7,4815.9,0.66]
[1755909501655,0.73370029,4817.7,4816.1,0.66]
[1755909501838,0.73370029,4817.7,4817.6,0.104]
[1755909502039,0.73370029,4817.7,4817.6,0.19421269]
[1755909502255,0.73370029,4817.7,4817.6,3.73321269]
[1755909502824,0.73370029,4817.7,4817.6,0.19421269]
[1755909505166,0.73370029,4817.7,4817.6,3.73321269]
[1755909505659,0.73370029,4817.7,4817.6,33.73321269]
[1755909507059,0.73370029,4817.7,4817.6,33.73313334]
[1755909507555,0.73370029,4817.7,4817.6,33.73311891]
[1755909507759,0.73370029,4817.7,4817.6,20.99711891]
[1755909507945,0.73370029,4817.7,4817.6,6.56411891]
[1755909508147,0.73370029,4817.7,4817.6,10.10011891]
[1755909508345,0.73370029,4817.7,4817.6,9.28411891]
[1755909508655,0.73370029,4817.7,4817.6,8.84011891]
[1755909509226,0.73370029,4817.7,4817.6,25.93411891]
[1755909509426,0.73370029,4817.7,4817.6,8.72711891]
[1755909509636,0.73370029,4817.7,4817.6,0.19411891]
[1755909510041,0.73370029,4817.7,4817.6,30.19411891]
[1755909510565,0.73370029,4817.7,4817.6,33.72811891]
[1755909511935,0.73370029,4817.7,4817.6,30.19411891]
[1755909512331,0.73370029,4817.7,4817.6,33.72811891]
[1755909512535,0.73370029,4817.7,4817.6,11.35511891]
[1755909513369,0.73370029,4817.7,4817.6,7.82111891]
[1755909513684,0.73370029,4817.7,4817.6,0.19411891]
[1755909513685,0.83770029,4817.7,4817.6,0.19411891]
[1755909515956,0.83770029,4817.7,4817.6,0.19412445]
[1755909523152,5.02670029,4817.7,4817.6,0.19412445]
[1755909523673,5.02670029,4817.7,4817.6,0.24372445]
[1755909523850,5.22082529,4817.7,4817.6,0.24372445]
[1755909524056,5.22082529,4817.7,4816.6,0.001]
[1755909524057,0.48997584,4816.7,4816.6,0.001]
[1755909524242,0.59397584,4816.7,4816.6,0.001]
[1755909527280,0.48997584,4816.7,4816.6,0.001]
[1755909540508,0.48997584,4816.7,4816.6,30.001]
[1755909540670,0.48997584,4816.7,4816.6,32.142878]
[1755909540865,0.48997584,4816.7,4816.6,16.360878]
[1755909541506,0.48997584,4816.7,4816.6,31.322878]
[1755909541700,0.48997584,4816.7,4816.6,28.159878]
[1755909542093,0.48997584,4816.7,4816.6,23.811878]
[1755909542294,0.48997584,4816.7,4816.6,19.468878]
[1755909542489,0.48997584,4816.7,4816.6,21.131878]
[1755909542667,0.48997584,4816.7,4816.6,13.205]
[1755909542869,0.48997584,4816.7,4816.6,0.001]
[1755909543074,0.59397584,4816.7,4816.6,0.001]
[1755909543506,0.48897584,4816.3,4816.1,0.001]
[1755909543810,0.104,4816.2,4816.1,0.001]
[1755909544012,0.59297584,4816.2,4816.1,0.001]
[1755909546130,2.74397584,4816.2,4816.1,0.001]
[1755909546490,12.74397584,4816.2,4816.1,0.001]
[1755909547430,2.74397584,4816.2,4816.1,0.001]
[1755909548418,12.74397584,4816.2,4816.1,0.001]
[1755909550834,16.26897584,4816.2,4816.1,0.001]
[1755909554053,2.74497584,4815.3,4815.2,0.001]
[1755909554348,0.66,4814.0,4813.8,0.02]
[1755909554554,12.58897584,4813.9,4813.8,0.02]
[1755909555428,13.24897584,4813.9,4813.8,0.02]
[1755909556024,13.35297584,4813.9,4813.8,0.02]
[1755909556258,16.35297584,4813.9,4813.8,0.02]
[1755909556445,26.35297584,4813.9,4813.8,0.02]
[1755909556642,3.66,4813.8,4813.7,0.001]
[1755909556830,20.28895446,4813.8,4813.7,0.001]
[1755909557553,30.28895446,4813.8,4813.7,0.001]
[1755909558531,30.28895446,4813.8,4810.8,0.02]
[1755909558532,37.7559303,4813.8,4810.8,0.02]
[1755909558730,0.764,4813.1,4810.8,0.02]
[1755909559053,4.292,4813.1,4810.8,0.02]
[1755909559624,4.375246,4813.1,4810.8,0.02]
[1755909561851,14.375246,4813.1,4813.0,0.001]
[1755909563728,1.09497584,4812.6,4812.5,0.001]
[1755909563941,13.32297584,4812.6,4812.5,0.001]
[1755909565178,13.40622184,4812.6,4812.5,0.001]
[1755909565484,23.40622184,4812.6,4812.5,0.001]
[1755909569251,23.40622184,4812.6,4812.0,0.001]
[1755909569252,0.66,4812.5,4812.0,0.001]
[1755909569456,3.66,4812.3,4812.0,0.001]
[1755909569694,0.66,4812.1,4812.0,0.001]
[1755909569892,4.287,4812.1,4812.0,0.001]
[1755909570099,1.09397584,4811.9,4811.8,0.02]
[1755909570263,4.62197584,4811.9,4811.8,0.02]
[1755909571058,11.62197584,4811.9,4811.8,0.02]
[1755909571261,4.72697584,4811.9,4811.8,0.02]
[1755909572458,14.72697584,4811.9,4811.8,0.02]
[1755909574083,26.3669303,4811.9,4811.8,0.02]
[1755909574808,26.3689303,4811.9,4811.8,0.02]
[1755909574970,22.8379303,4811.9,4811.8,0.02]
[1755909575171,26.3689303,4811.9,4811.8,0.02]
[1755909575365,22.8379303,4811.9,4811.8,0.02]
[1755909575595,26.3689303,4811.9,4811.8,0.02]
[1755909575978,26.4521943,4811.9,4811.8,0.02]
[1755909576504,20.101096,4811.9,4811.8,0.02]
[1755909576805,20.2551652,4811.9,4811.8,0.02]
[1755909577577,16.0641652,4811.9,4811.8,0.02]
[1755909577818,19.5109012,4811.9,4811.8,0.02]
[1755909578171,20.1709012,4811.9,4811.8,0.02]
[1755909578783,7.05223762,4811.9,4811.8,0.02]
[1755909579102,10.58923762,4811.9,4811.8,0.02]
[1755909579311,11.24923762,4811.9,4811.8,0.02]
[1755909579493,5.794,4811.9,4811.8,0.02]
[1755909580397,5.133,4811.9,4811.8,0.02]
[1755909580595,1.597,4811.9,4811.8,0.02]
[1755909580780,5.133,4811.9,4811.8,0.02]
[1755909582201,5.133,4811.9,4809.8,0.095234]
[1755909582414,5.133,4811.9,4809.9,30.0]
[1755909582623,5.133,4811.9,4809.9,30.00389624]
[1755909582773,5.133,4811.9,4810.0,30.0]
[1755909582974,5.133,4811.9,4811.8,0.001]
[1755909584480,5.132,4811.9,4811.8,0.001]
[1755909585279,5.132,4811.9,4809.8,0.095234]
[1755909585280,0.66,4811.8,4809.8,0.095234]
[1755909585590,5.94885616,4810.0,4809.9,0.00795161]
[1755909585792,0.66,4809.9,4809.8,0.012]
[1755909588691,0.764,4809.9,4809.8,0.012]
[1755909590416,10.764,4809.9,4809.8,0.012]
[1755909591451,10.74,4809.9,4809.8,0.012]
[1755909592548,0.74,4809.9,4809.8,0.012]
[1755909594438,10.74,4809.9,4809.8,0.012]
[1755909597027,14.301,4809.9,4809.8,0.012]
[1755909597432,4.301,4809.9,4809.8,0.012]
[1755909598127,3.665,4809.9,4809.8,0.012]
[1755909598332,3.664,4809.9,4809.8,0.012]
[1755909599170,11.598,4810.7,4809.8,0.012]
[1755909599358,3.561,4810.6,4809.8,0.012]
[1755909600334,3.561,4810.6,4809.9,30.0]
[1755909600542,3.561,4810.6,4810.0,2.141878]
[1755909600876,3.561,4810.6,4809.8,0.013]
[1755909601077,7.0,4811.6,4809.9,30.0]
[1755909601256,1.598,4811.4,4810.0,0.02079002]
[1755909601432,3.56,4811.0,4810.1,16.11]
[1755909601632,1.598,4811.4,4810.2,1.63308915]
[1755909601938,3.561,4811.1,4810.3,30.0]
[1755909602372,3.561,4811.1,4810.4,0.02078829]
[1755909602646,3.56,4811.6,4811.1,30.0]
[1755909602857,3.56,4811.6,4811.2,2.141878]
[1755909603073,0.002,4811.8,4810.7,10.0]
[1755909603377,0.002,4811.8,4810.4,30.0]
[1755909606230,0.002,4811.8,4811.7,0.2866]
[1755909606659,0.002,4811.8,4811.7,0.7418]
[1755909607375,0.022,4811.8,4811.7,30.7418]
[1755909607564,0.022,4811.8,4811.7,32.883678]
[1755909609136,0.022,4811.8,4811.7,0.3906]
[1755909609375,0.022,4811.8,4811.7,0.2866]
[1755909609672,0.022,4811.8,4811.1,0.104]
[1755909609673,0.3254,4811.8,4811.1,0.104]
[1755909609873,0.104,4811.3,4810.7,0.4552]
[1755909610169,0.104,4811.3,4809.8,0.013]
[1755909610170,0.104,4810.9,4810.4,0.4552]
[1755909610384,0.104,4810.9,4810.8,0.3058]
[1755909611568,0.104,4810.9,4810.2,0.104]
[1755909611569,0.8679,4810.9,4810.2,0.104]
[1755909611740,0.43397584,4810.8,4810.2,0.104]
[1755909611986,0.3034,4810.3,4810.2,0.104]
[1755909612143,2.0044,4810.3,4809.8,0.013]
[1755909612486,0.104,4809.9,4809.8,0.013]
[1755909612685,3.9664,4809.9,4809.8,0.013]
[1755909612845,4.4269,4809.9,4809.8,0.013]
[1755909613437,4.4269,4809.9,4808.4,0.4402]
[1755909613657,0.104,4809.4,4808.5,18.951]
[1755909613851,1.597,4810.3,4808.6,10.0]
[1755909613852,0.104,4809.0,4808.6,10.0]
[1755909614139,0.104,4809.0,4808.1,0.104]
[1755909614342,0.104,4809.0,4808.9,0.3058]
[1755909615547,3.56,4809.3,4808.9,0.761]
[1755909615548,0.104,4809.2,4808.9,0.761]
[1755909615861,0.104,4809.2,4809.0,0.4552]
[1755909616181,0.104,4809.2,4809.1,0.3058]
[1755909616485,0.3034,4809.1,4808.0,0.4552]
[1755909616783,0.3034,4809.1,4808.1,0.104]
[1755909616992,0.104,4808.6,4808.0,0.4552]
[1755909617151,0.104,4808.6,4808.1,5.084]
[1755909617346,0.104,4808.6,4808.5,0.3058]
[1755909619241,1.597,4809.4,4808.5,30.7406]
[1755909619242,3.556,4809.2,4808.5,30.7406]
[1755909619477,3.556,4809.2,4808.5,0.8446]
[1755909619478,3.66,4809.2,4808.5,0.8446]
[1755909619680,3.66,4809.2,4808.5,0.4098]
[1755909619878,3.556,4809.2,4808.5,0.3058]
[1755909620184,0.104,4808.7,4808.5,0.3058]
[1755909622971,0.66,4810.2,4808.5,0.3058]
[1755909622972,0.10858193,4813.0,4809.4,1.2026079]
[1755909623168,0.002,4811.1,4810.7,11.65990187]
[1755909623349,0.104,4812.8,4810.7,11.65990187]
[1755909623350,0.104,4812.8,4811.0,0.104]
[1755909623548,0.104,4812.8,4811.1,32.72300953]
[1755909623750,0.104,4812.8,4811.2,34.11822597]
[1755909624064,0.104,4812.8,4811.3,32.85425104]
[1755909624264,0.104,4812.8,4811.4,30.19325848]
[1755909624467,0.002,4811.6,4811.5,30.19325848]
[1755909624786,0.104,4812.8,4812.2,0.104]
[1755909625076,0.104,4812.8,4812.3,0.19325848]
[1755909625373,0.104,4812.8,4812.4,0.19325848]
[1755909625573,0.104,4812.8,4812.5,0.19325848]
[1755909625780,0.104,4812.8,4812.6,0.19325848]
[1755909625977,0.104,4812.8,4812.7,0.19325848]
[1755909626279,0.3072,4812.8,4812.7,0.19325848]
[1755909626480,0.4112,4812.8,4812.7,0.19325848]
[1755909626785,0.02,4813.8,4812.9,0.66]
[1755909626960,0.02,4813.8,4812.8,30.0]
[1755909626961,0.02,4813.8,4813.6,11.65990187]
[1755909627148,0.02,4813.8,4813.7,36.14414708]
[1755909627349,0.02,4813.8,4813.7,36.12337304]
[1755909627544,0.02,4813.8,4813.7,38.26525104]
[1755909629354,0.02,4813.8,4813.7,38.92525104]
[1755909629578,0.02,4813.8,4813.7,38.92025104]
[1755909629756,0.02,4813.8,4813.7,35.21525104]
[1755909629960,0.02,4813.8,4813.7,38.92025104]
[1755909631262,0.02,4813.8,4813.7,38.9192937]
[1755909631784,0.02,4813.8,4813.7,35.2141871]
[1755909631982,0.02,4813.8,4813.7,38.9151871]
[1755909632479,0.02,4813.8,4813.7,39.21089168]
[1755909633261,0.02,4813.8,4813.7,39.29404068]
[1755909633983,0.02,4813.8,4813.7,38.9983361]
[1755909634580,0.002,4814.9,4813.8,0.66]
[1755909634889,0.002,4814.9,4814.0,0.66]
[1755909635190,0.002,4814.9,4814.7,0.104]
[1755909635382,0.002,4814.9,4814.7,4.5083091]
[1755909635688,0.002,4814.9,4814.7,34.5083091]
[1755909637178,0.002,4814.9,4814.7,33.98458755]
[1755909637375,0.002,4814.9,4814.7,36.12646555]
[1755909638080,0.002,4814.9,4814.7,36.20960655]
[1755909638270,0.002,4814.9,4814.7,32.85850022]
[1755909638475,0.002,4814.9,4814.7,36.54650022]
[1755909639186,0.002,4814.9,4814.7,32.52060655]
[1755909639366,0.002,4814.9,4814.7,36.12346555]
[1755909640198,0.002,4814.9,4814.7,35.931878]
[1755909640384,0.002,4814.9,4814.7,36.12318333]
[1755909640764,0.002,4814.9,4814.7,36.12112488]
[1755909640964,0.002,4814.9,4814.7,2.43712488]
[1755909641200,0.002,4814.9,4814.7,33.97724688]
[1755909641767,0.002,4814.9,4814.7,30.29524688]
[1755909641968,0.002,4814.9,4814.7,33.97424688]
[1755909642400,0.002,4814.9,4814.7,30.29524688]
[1755909642571,0.002,4814.9,4814.7,33.97424688]
[1755909642901,0.002,4814.9,4814.7,36.11612488]
[1755909643099,0.002,4814.9,4814.7,36.45401855]
[1755909643399,0.002,4814.9,4814.8,30.52914055]
[1755909644602,0.24273039,4815.8,4814.8,31.28844055]
[1755909644904,0.24273039,4815.8,4815.7,0.104]
[1755909645070,0.54993039,4815.8,4815.7,33.96924688]
[1755909646576,0.54993039,4815.8,4815.7,30.29524688]
[1755909646776,0.54993039,4815.8,4815.7,33.96824688]
[1755909648780,4.74993039,4815.8,4815.7,0.29524688]
[1755909648977,4.74993039,4815.8,4815.7,3.85724688]
[1755909649186,4.74993039,4815.8,4815.5,3.666]
[1755909649384,0.4511,4815.7,4815.6,0.19194989]
[1755909649620,0.7666,4815.7,4815.6,0.19194989]
[1755909649915,4.9666,4815.7,4815.6,0.19194989]
[1755909652210,5.0706,4815.7,4815.6,0.19194989]
[1755909653301,5.0706,4815.7,4815.6,0.19294989]
[1755909656523,4.9666,4815.7,4815.6,0.19294989]
[1755909658223,4.5155,4815.7,4815.6,0.001]
[1755909658391,4.5155,4815.7,4815.6,0.19553509]
[1755909658805,4.5155,4815.7,4815.6,0.19553606]
[1755909659205,4.9666,4815.7,4815.6,0.19553606]
[1755909660226,4.2,4815.7,4815.6,0.49793606]
[1755909660726,4.2,4815.7,4815.6,2.63981406]
[1755909661022,4.2,4815.7,4815.6,32.74381077]
[1755909664252,3.95053413,4815.7,4815.6,32.74381077]
[1755909664450,4.02613413,4815.8,4815.7,30.0]
[1755909664657,4.02613413,4815.8,4815.7,31.16452644]
[1755909664857,4.02613413,4815.8,4815.7,33.30640444]
[1755909665364,4.02613413,4815.8,4815.7,33.08070444]
[1755909665857,3.27784155,4815.8,4815.7,36.38481077]
[1755909666215,3.59334155,4815.8,4815.7,20.830878]
[1755909666436,3.59334155,4815.8,4815.7,24.66634957]
[1755909666719,3.27784155,4815.8,4815.7,36.08134957]
[1755909666933,3.27784155,4815.8,4815.7,36.08133358]
[1755909668354,0.002,4816.7,4815.8,2.801878]
[1755909668667,0.002,4816.7,4816.2,0.3024]
[1755909668955,0.002,4816.7,4816.2,34.58474925]
[1755909669138,0.002,4816.7,4816.2,36.52099485]
[1755909669453,0.002,4816.7,4816.2,26.07351479]
[1755909669642,0.002,4816.7,4816.2,35.87951479]
[1755909670219,0.002,4816.7,4816.2,32.23451479]
[1755909670446,0.002,4816.7,4816.2,35.87851479]
[1755909671033,0.002,4816.7,4816.2,35.87844514]
[1755909672151,0.002,4816.7,4816.2,36.18084514]
[1755909674437,0.002,4816.7,4816.6,0.104]
[1755909674634,0.7686,4816.7,4816.6,27.26719954]
[1755909674835,0.7686,4816.7,4816.6,26.54619954]
[1755909675068,0.7686,4816.7,4816.6,22.15219954]
[1755909675239,0.7686,4816.7,4816.6,24.498]
[1755909675592,0.7686,4816.7,4816.6,24.69196047]
[1755909675873,0.7686,4816.7,4816.6,33.93396047]
[1755909677649,0.7686,4816.7,4816.6,3.93396047]
[1755909678225,0.7686,4816.7,4816.6,33.93396047]
[1755909679069,0.7686,4816.7,4816.6,34.31739877]
[1755909680570,0.3175,4816.7,4816.6,34.31739877]
[1755909680775,0.002,4816.7,4816.6,35.03820335]
[1755909681069,0.002,4816.7,4816.6,35.08039244]
[1755909681625,0.002,4816.7,4816.6,30.91529244]
[1755909681830,0.002,4816.7,4816.6,33.81996047]
[1755909681831,0.3021,4816.7,4816.6,33.81996047]
[1755909682154,0.002,4816.7,4816.6,34.12336047]
[1755909682549,0.002,4816.7,4816.6,30.49736047]
[1755909682734,0.002,4816.7,4816.6,35.00403134]
[1755909683349,0.002,4816.7,4816.6,35.64532501]
[1755909684151,0.002,4816.7,4816.6,35.34192501]
[1755909684360,0.002,4816.7,4816.6,35.14796454]
[1755909684659,0.002,4816.7,4816.6,35.34186301]
[1755909685299,0.002,4816.7,4816.6,35.33786301]
[1755909685458,0.002,4816.7,4816.6,31.71486301]
[1755909685662,0.002,4816.7,4816.6,35.33686301]
[1755909686378,0.002,4816.7,4816.6,35.64026301]
[1755909686598,0.002,4816.7,4816.6,35.63376301]
[1755909687863,0.002,4816.7,4816.6,5.63376301]
[1755909688355,0.022,4816.8,4816.7,10.0]
[1755909688552,0.022,4816.8,4816.7,33.27277472]
[1755909689250,0.022,4816.8,4816.7,35.12046487]
[1755909690484,0.022,4816.8,4816.7,34.82494811]
[1755909690684,0.022,4816.8,4816.7,34.93131888]
[1755909691091,0.022,4816.8,4816.7,34.82494811]
[1755909691293,0.7744,4816.8,4816.7,38.23954811]
[1755909691652,0.7744,4816.8,4816.7,36.39185796]
[1755909691852,0.3221,4816.8,4816.7,38.23954811]
[1755909693291,0.3221,4816.8,4816.7,36.39185796]
[1755909693589,0.022,4816.8,4816.7,36.39201205]
[1755909693960,0.7744,4816.8,4816.7,36.38901205]
[1755909694693,0.7744,4816.8,4816.7,32.77801205]
[1755909694996,0.7744,4816.8,4816.7,36.11179274]
[1755909695172,0.7744,4816.8,4816.7,34.24613405]
[1755909695373,0.7744,4816.8,4816.7,34.24413405]
[1755909696095,0.7744,4816.8,4816.7,36.10979274]
[1755909698002,0.7744,4816.8,4816.7,9.71989907]
[1755909698296,0.7744,4816.8,4816.7,3.90424038]
[1755909698794,0.7744,4816.8,4816.7,33.90424038]
[1755909698975,0.7744,4816.8,4816.7,24.705]
[1755909699295,0.7744,4816.8,4816.7,34.04789367]
[1755909699498,0.7744,4816.8,4816.7,34.04489367]
[1755909700294,0.7744,4816.8,4816.7,7.12289367]
[1755909700601,0.7744,4816.8,4816.7,13.36189367]
[1755909700805,0.7744,4816.8,4816.7,10.39489367]
[1755909700973,0.7744,4816.8,4816.7,14.75189367]
[1755909701663,0.7744,4816.8,4816.7,27.76589367]
[1755909701868,0.7744,4816.8,4816.7,29.41589367]
[1755909702086,0.7744,4816.8,4816.7,14.82489367]
[1755909702288,0.7744,4816.8,4816.7,33.94089367]
[1755909702884,0.7744,4816.8,4816.7,26.13589367]
[1755909703082,0.7744,4816.8,4816.7,7.097]
[1755909703395,0.7744,4816.8,4816.7,3.94089367]
[1755909704269,0.7744,4816.8,4816.7,0.33789367]
[1755909704609,0.7744,4816.8,4816.6,3.599]
[1755909704610,0.7744,4816.8,4816.6,0.001]
[1755909704761,0.4523,4816.7,4816.6,0.001]
[1755909704960,0.7524,4816.7,4816.6,0.001]
[1755909705815,0.3001,4816.7,4816.6,0.001]
[1755909705979,0.022,4816.8,4816.7,30.0]
[1755909706169,0.022,4816.8,4816.7,33.93389367]
[1755909706372,0.022,4816.8,4816.7,36.19558683]
[1755909707877,0.022,4816.8,4816.7,33.93389367]
[1755909708201,0.022,4816.8,4816.7,15.56889367]
[1755909709221,0.022,4816.8,4816.7,33.93389367]
[1755909710399,0.022,4816.8,4816.7,34.03789367]
[1755909711873,0.3355,4816.8,4816.7,34.03789367]
[1755909712071,0.7869,4816.8,4816.7,7.667]
[1755909712305,0.7869,4816.8,4816.7,8.539]
[1755909712468,0.7869,4816.8,4816.7,7.926]
[1755909712873,0.7869,4816.8,4816.7,10.136]
[1755909713082,0.7869,4816.8,4816.7,10.46689367]
[1755909713282,0.7869,4816.8,4816.7,10.47589367]
[1755909713478,0.7869,4816.8,4816.7,7.67389367]
[1755909713690,0.7869,4816.8,4816.7,5.596]
[1755909713913,0.7869,4816.8,4816.7,6.80689367]
[1755909714113,0.7869,4816.8,4816.7,7.68489367]
[1755909714514,0.7869,4816.8,4816.7,8.28689367]
[1755909714985,0.7869,4816.8,4816.7,30.33789367]
[1755909715516,0.022,4816.8,4816.7,30.33789367]
[1755909715716,0.022,4816.8,4816.7,30.65139367]
[1755909716217,0.022,4816.8,4816.7,30.33789367]
[1755909716615,0.022,4816.8,4816.7,32.79327167]
[1755909716818,0.022,4816.8,4816.7,32.89727167]
[1755909717902,0.022,4816.8,4816.7,32.58377167]
[1755909718314,0.3355,4816.8,4816.7,32.58377167]
[1755909718720,0.7869,4816.8,4816.7,32.58377167]
[1755909719320,0.7869,4816.8,4816.6,0.001]
[1755909719617,0.4514,4816.7,4816.6,0.001]
[1755909719818,0.7649,4816.7,4816.6,0.001]
[1755909722502,0.7669,4816.7,4816.6,0.001]
[1755909722712,4.04474155,4816.7,4816.6,0.001]
[1755909724827,3.59334155,4816.7,4816.6,0.001]
[1755909725044,3.59334155,4816.7,4816.6,0.33889367]
[1755909725421,4.04474155,4816.7,4816.6,0.33889367]
[1755909726905,3.59334155,4816.7,4816.6,0.33889367]
[1755909727127,4.04474155,4816.7,4816.6,0.33889367]
[1755909729820,3.27984155,4816.7,4816.6,30.65239367]
[1755909730020,3.27984155,4816.7,4816.6,33.8935]
[1755909731426,3.27984155,4816.7,4816.6,30.50914696]
[1755909731612,3.27984155,4816.7,4816.6,34.08614696]
[1755909732726,3.27984155,4816.7,4816.6,34.19014696]
[1755909733242,3.27984155,4816.7,4816.6,34.08614696]
[1755909734321,3.27984155,4816.7,4816.6,34.08614633]
[1755909735240,3.27984155,4816.7,4816.6,27.43214633]
[1755909735646,3.27984155,4816.7,4816.6,27.11864633]
[1755909736044,3.27984155,4816.7,4816.6,33.77264633]
[1755909736539,3.27984155,4816.7,4816.6,34.39806091]
[1755909737337,3.27984155,4816.7,4816.6,34.20341458]
[1755909737536,3.27984155,4816.7,4816.6,34.3980702]
[1755909738038,3.27984155,4816.7,4816.6,34.39807032]
[1755909738648,3.27984155,4816.7,4816.6,34.08457032]
[1755909738846,4.04624155,4816.7,4816.6,21.81557032]
[1755909739016,4.04624155,4816.7,4816.6,17.06466455]
[1755909739220,3.27984155,4816.7,4816.6,20.63266455]
[1755909739522,3.27984155,4816.7,4816.6,20.61566455]
[1755909739523,4.04624155,4816.7,4816.6,20.61566455]
[1755909739726,3.27984155,4816.7,4816.6,20.61566455]
[1755909740612,3.27984155,4816.7,4816.6,21.50966455]
[1755909741234,4.04624155,4816.7,4816.6,20.47270023]
[1755909741626,3.27984155,4816.7,4816.6,3.76270023]
[1755909741939,3.27984155,4816.7,4816.6,26.43170023]
[1755909742149,3.27984155,4816.7,4816.6,33.76270023]
[1755909742445,3.27984155,4816.7,4816.6,34.07461481]
[1755909742812,3.27984155,4816.7,4816.6,36.75499281]
[1755909743014,3.03042809,4816.7,4816.6,38.6206515]
[1755909743371,3.03042809,4816.7,4816.6,37.72385736]
[1755909743372,2.78102887,4816.7,4816.6,37.72385736]
[1755909745818,0.022,4816.8,4816.6,37.72385736]
[1755909746018,0.022,4816.8,4816.7,30.52737591]
[1755909746340,0.022,4816.8,4816.7,32.87507823]
[1755909746529,0.022,4816.8,4816.7,33.18674966]
[1755909746728,0.022,4816.8,4816.7,32.87483508]
[1755909746939,0.022,4816.8,4816.7,32.87483207]
[1755909747834,0.022,4816.8,4816.7,33.11633262]
[1755909748547,0.022,4816.8,4816.7,33.77633262]
[1755909750340,0.022,4816.8,4816.7,33.85943662]
[1755909751722,0.022,4816.8,4816.7,38.00328444]
[1755909751923,0.022,4816.8,4816.7,41.56028444]
[1755909752350,0.022,4816.8,4816.7,43.4252417]
[1755909752923,0.002,4817.2,4816.7,43.4252417]
[1755909753120,0.002,4817.2,4817.1,0.104]
[1755909753346,0.002,4817.2,4817.1,33.85345407]
[1755909753841,0.002,4817.2,4817.1,30.29845407]
[1755909754054,0.002,4817.2,4817.1,33.85345407]
[1755909754336,0.7684,4817.2,4817.1,0.29845407]
[1755909755435,0.7684,4817.2,4817.1,0.104]
[1755909755761,0.7684,4817.2,4817.1,0.29828296]
[1755909755919,0.7684,4817.2,4817.1,0.104]
[1755909756122,0.7684,4817.2,4817.1,0.29828296]
[1755909758454,0.7684,4817.2,4817.1,0.29831819]
[1755909760670,3.54942887,4817.2,4817.1,0.29831819]
[1755909761452,3.30002007,4817.2,4817.1,0.29831819]
[1755909764043,2.83602007,4817.2,4817.1,0.29831819]
[1755909764460,2.83602007,4817.2,4817.1,0.29839042]
[1755909764767,2.83602007,4817.2,4817.1,30.29839042]
[1755909765161,2.78102887,4817.2,4817.1,30.29839042]
[1755909765365,2.78102887,4817.2,4817.1,33.85339042]
[1755909765867,3.54742887,4817.2,4817.1,7.99939042]
[1755909766283,3.54742887,4817.2,4817.1,6.97139042]
[1755909766480,3.54742887,4817.2,4817.1,0.29839042]
[1755909772685,3.54742887,4817.2,4817.1,0.29939042]
[1755909772890,3.54942887,4817.2,4817.1,0.29939042]
[1755909773270,3.54942887,4817.2,4817.1,0.105]
[1755909773594,3.54942887,4817.2,4817.1,0.29946536]
[1755909775094,3.54942887,4817.2,4817.1,0.19546536]
[1755909776199,5.14442887,4817.2,4817.1,0.19546536]